bitfinex-derivatives/quotes_ETHF0:USTF0_20240822
["timestamp","ask_amount","ask_price","bid_price","bid_amount"]
[1724346840896,0.3601,2612.4,2611.8,3.58902544]
[1724346841073,0.38274,2612.0,2611.8,3.21062544]
[1724346841473,0.38271,2612.2,2611.9,0.73944]
[1724346841681,0.362,2612.5,2611.9,0.3567]
[1724346841882,1.462,2612.5,2612.1,3.2078]
[1724346842075,0.38267,2612.4,2612.2,0.3774]
[1724346842279,0.74466,2612.5,2612.2,0.76009]
[1724346842475,0.982,2612.5,2612.2,0.76009]
[1724346842778,3.5728,2612.8,2612.2,0.3774]
[1724346842969,3.5728,2612.8,2612.2,28.76009]
[1724346842970,6.15886,2612.8,2612.2,28.76009]
[1724346843176,0.38266,2612.5,2612.2,28.76009]
[1724346843376,0.38268,2612.4,2612.2,0.3774]
[1724346843571,0.38269,2612.3,2612.1,3.2078]
[1724346844080,0.3827,2612.2,2612.1,3.2078]
[1724346844280,0.7389,2612.3,2612.1,3.2078]
[1724346844483,0.3827,2612.2,2612.1,3.2078]
[1724346844882,0.7389,2612.3,2612.1,3.2078]
[1724346845582,0.38269,2612.3,2612.1,3.2078]
[1724346845786,0.95664,2612.6,2612.1,3.2078]
[1724346845787,0.38268,2612.4,2612.1,3.2078]
[1724346846086,0.38269,2612.3,2612.1,3.2078]
[1724346846283,0.73886,2612.5,2612.1,3.2078]
[1724346846579,0.3562,2612.5,2612.1,3.2078]
[1724346846788,0.73886,2612.5,2612.1,3.59051]
[1724346847089,0.38269,2612.4,2612.1,3.2078]
[1724346847378,0.38269,2612.3,2612.1,3.2078]
[1724346847573,0.3562,2612.5,2612.1,3.2078]
[1724346847574,0.38268,2612.4,2612.1,3.2078]
[1724346848379,0.73886,2612.5,2612.1,3.2078]
[1724346848576,0.73886,2612.5,2612.1,3.59051]
[1724346848784,0.73886,2612.5,2611.8,0.35972544]
[1724346848785,10.3448,2612.4,2611.8,3.21062544]
[1724346848979,0.38275,2611.9,2611.8,0.00282544]
[1724346849287,0.95681,2612.1,2611.8,0.00282544]
[1724346849484,0.369,2612.0,2611.8,0.00282544]
[1724346849680,0.38275,2611.9,2611.8,0.00282544]
[1724346854879,4.21155,2611.9,2611.8,0.00282544]
[1724346858491,4.56875,2611.9,2611.8,0.00282544]
[1724346860011,0.73995,2611.9,2611.8,0.00282544]
[1724346860698,0.369,2612.0,2611.8,3.21062544]
[1724346860906,0.07,2612.0,2611.8,8.14207544]
[1724346861196,0.07,2612.0,2611.9,0.38275]
[1724346861398,0.07,2612.0,2611.9,4.21155]
[1724346861593,0.07,2612.0,2611.9,3.8288]
[1724346861995,0.07,2612.0,2611.8,3.21062544]
[1724346863687,0.38275,2611.9,2611.8,3.21062544]
[1724346865400,0.38272,2612.1,2611.8,3.21062544]
[1724346865595,0.13,2612.1,2611.8,3.94638544]
[1724346865795,0.51272,2612.1,2611.8,3.94638544]
[1724346866290,0.51272,2612.1,2611.8,3.56362544]
[1724346866486,0.51272,2612.1,2611.8,3.94638544]
[1724346868291,0.13,2612.1,2611.9,0.38274]
[1724346868604,0.38264,2612.6,2612.1,0.3827]
[1724346868808,0.38266,2612.5,2612.2,0.357]
[1724346869004,0.38267,2612.4,2612.2,0.357]
[1724346869197,0.3827,2612.2,2612.1,3.2078]
[1724346869804,0.38272,2612.1,2611.8,0.35982544]
[1724346870590,0.38272,2612.1,2611.8,0.74258544]
[1724346870801,0.73921,2612.2,2611.8,0.74258544]
[1724346871006,0.38273,2612.1,2612.0,3.2078]
[1724346873002,0.75073,2612.1,2612.0,3.2078]
[1724346873799,0.38275,2611.9,2611.8,0.00282544]
[1724346874902,1.33962,2611.9,2611.8,0.00282544]
[1724346875112,0.59275,2611.9,2611.8,0.00282544]
[1724346877510,4.42155,2611.9,2611.8,0.00282544]
[1724346877807,0.38275,2611.9,2611.8,0.00282544]
[1724346879911,7.26752,2612.1,2611.8,0.00282544]
[1724346880108,0.38273,2612.0,2611.8,0.00282544]
[1724346880418,0.39273,2612.0,2611.8,0.00282544]
[1724346881013,3.95852,2612.1,2611.8,0.00282544]
[1724346881314,4.64852,2612.1,2611.8,0.00282544]
[1724346881715,4.64852,2612.1,2611.8,0.38292544]
[1724346881918,0.38273,2612.0,2611.8,0.38292544]
[1724346882613,3.95852,2612.1,2611.8,0.38292544]
[1724346882815,3.5758,2612.1,2611.8,0.38292544]
[1724346883318,0.38274,2612.0,2611.8,0.00282544]
[1724346883905,3.95853,2612.1,2611.8,0.00282544]
[1724346884112,3.5758,2612.1,2611.8,0.38557544]
[1724346884419,3.5758,2612.1,2611.8,0.00282544]
[1724346884614,3.5758,2612.1,2611.8,0.38558544]
[1724346884819,0.368,2612.1,2611.8,0.38558544]
[1724346885715,0.3565,2612.2,2611.8,0.00282544]
[1724346885929,3.2078,2612.5,2611.9,7.7732]
[1724346886223,0.38266,2612.5,2612.2,3.2078]
[1724346886719,8.5698,2612.9,2612.2,3.561]
[1724346886919,8.95241,2612.9,2612.5,3.59045]
[1724346887119,0.38261,2612.8,2612.6,0.3792]
[1724346887310,0.38263,2612.7,2612.5,3.2078]
[1724346887722,0.3844,2612.6,2612.3,0.38268]
[1724346888223,0.3844,2612.6,2612.2,3.2078]
[1724346888224,0.76705,2612.6,2612.2,3.59049]
[1724346889621,0.38266,2612.5,2612.2,3.2078]
[1724346889843,0.38269,2612.3,2612.2,3.2078]
[1724346890019,0.73968,2612.4,2612.2,3.2078]
[1724346891024,0.75277,2612.5,2612.2,3.5905]
[1724346891626,0.3701,2612.5,2612.2,3.2078]
[1724346891819,0.75277,2612.5,2612.2,3.5905]
[1724346892822,0.3701,2612.5,2612.4,0.38267]
[1724346893021,0.76705,2612.6,2612.2,3.2078]
[1724346893513,0.76705,2612.6,2612.3,0.38269]
[1724346894013,0.3844,2612.6,2612.4,0.38267]
[1724346894214,0.76704,2612.6,2612.4,0.38267]
[1724346894414,0.76704,2612.6,2612.3,0.38268]
[1724346894621,0.3844,2612.6,2612.4,0.38267]
[1724346895718,0.3844,2612.6,2612.3,0.38268]
[1724346896024,0.3844,2612.6,2612.2,3.2078]
[1724346896324,0.3844,2612.6,2612.4,0.38267]
[1724346896821,0.3844,2612.6,2612.3,0.38268]
[1724346897416,0.3844,2612.6,2612.4,0.38267]
[1724346897812,0.73662,2612.8,2612.5,0.38266]
[1724346898018,1.28662,2612.8,2612.6,0.3655]
[1724346898223,0.354,2612.8,2612.6,1.12523]
[1724346898519,0.73662,2612.8,2612.6,3.9504]
[1724346898929,0.354,2612.8,2612.6,4.33304]
[1724346899720,0.38257,2613.2,2612.7,3.8272]
[1724346899960,2.29207,2613.2,2612.7,0.3809]
[1724346900224,1.9095,2613.2,2612.7,0.3809]
[1724346900427,0.7195,2613.2,2612.7,0.3809]
[1724346900821,0.95643,2613.1,2612.6,3.9504]
[1724346901030,0.38262,2612.8,2612.6,3.2078]
[1724346901622,0.38265,2612.6,2612.3,0.38268]
[1724346901826,0.38265,2612.6,2612.5,3.2078]
[1724346902331,0.38268,2612.4,2612.0,0.76732]
[1724346902627,0.38268,2612.4,2612.2,3.2078]
[1724346902828,0.3622,2612.3,2612.0,1.13932]
[1724346903029,0.3622,2612.3,2612.1,0.38271]
[1724346903528,0.74489,2612.3,2612.0,1.13932]
[1724346903926,0.3513,2612.2,2612.0,0.75472]
[1724346904126,0.3513,2612.2,2612.1,0.38272]
[1724346905231,0.38266,2612.5,2612.3,0.38267]
[1724346905631,0.73395,2612.6,2612.4,0.38267]
[1724346905931,0.38266,2612.5,2612.3,0.38268]
[1724346906228,0.3513,2612.6,2612.3,0.38268]
[1724346906229,0.73395,2612.6,2612.3,0.38268]
[1724346906426,0.38266,2612.5,2612.2,3.59049]
[1724346906625,0.73395,2612.6,2612.3,0.38268]
[1724346907137,0.38255,2613.3,2612.9,0.38259]
[1724346907335,0.3537,2613.2,2612.8,3.59041]
[1724346907530,1.4037,2613.2,2612.8,3.59041]
[1724346907736,1.78626,2613.2,2612.8,3.59041]
[1724346908234,0.38257,2613.1,2612.8,3.2078]
[1724346908442,0.18,2613.1,2612.5,3.59046]
[1724346908646,0.38258,2613.0,2612.5,3.59046]
[1724346908841,0.76348,2613.0,2612.5,3.59046]
[1724346909440,0.3826,2612.9,2612.5,3.59046]
[1724346909642,0.3691,2612.8,2612.5,3.2078]
[1724346909837,0.3778,2612.7,2612.5,3.2078]
[1724346910343,0.3809,2612.6,2612.4,0.3809]
[1724346911441,0.3809,2612.6,2612.4,0.76357]
[1724346911645,0.3809,2612.6,2612.4,0.3809]
[1724346912153,0.3809,2612.6,2612.4,0.76357]
[1724346912347,0.3809,2612.6,2612.5,0.38266]
[1724346912536,0.3826,2612.9,2612.5,0.38265]
[1724346912737,0.3826,2612.9,2612.5,0.38264]
[1724346913537,4.0394,2613.0,2612.4,0.3809]
[1724346913741,0.38263,2612.7,2612.3,3.59048]
[1724346914350,0.3763,2612.6,2612.4,0.38267]
[1724346915042,0.3763,2612.6,2612.3,3.2078]
[1724346915247,0.38262,2612.8,2612.4,0.38266]
[1724346915437,0.38262,2612.8,2612.5,0.3532]
[1724346915747,0.38263,2612.7,2612.5,0.3532]
[1724346916157,0.7589,2612.9,2612.6,3.59044]
[1724346916448,0.3763,2612.9,2612.6,3.59044]
[1724346916644,0.7589,2612.9,2612.6,3.59044]
[1724346917154,0.38261,2612.8,2612.6,3.2078]
[1724346917348,0.38262,2612.8,2612.6,3.2078]
[1724346917556,0.38263,2612.7,2612.6,3.2078]
[1724346917853,0.38263,2612.7,2612.3,3.59048]
[1724346918053,0.369,2612.6,2612.3,3.59048]
[1724346918262,0.3794,2612.5,2612.3,3.2078]
[1724346918468,1.13347,2612.5,2612.3,3.2078]
[1724346918955,0.7508,2612.5,2612.3,3.2078]
[1724346919147,0.38262,2612.8,2612.5,0.38265]
[1724346919348,1.67262,2612.8,2612.5,0.38265]
[1724346920658,1.29,2612.8,2612.6,0.38264]
[1724346920859,4.103,2613.2,2612.8,0.38261]
[1724346920860,4.48556,2613.2,2612.8,0.38261]
[1724346921058,4.103,2613.2,2612.9,1.13879]
[1724346921248,4.103,2613.2,2613.0,0.38258]
[1724346921456,0.3662,2613.3,2613.1,0.38256]
[1724346921761,0.35974053,2613.4,2613.1,0.38256]
[1724346921953,0.35974053,2613.4,2613.0,3.59038]
[1724346922256,0.74227053,2613.4,2613.0,3.59038]
[1724346922458,0.35974053,2613.4,2612.9,0.3778]
[1724346922662,2.52974053,2613.4,2613.0,3.2078]
[1724346922958,0.38255,2613.3,2612.9,0.76039]
[1724346923162,0.38255,2613.3,2613.0,3.2078]
[1724346924066,0.35974053,2613.4,2613.1,0.38256]
[1724346924263,0.35974053,2613.4,2613.1,0.38257]
[1724346924559,0.38254,2613.3,2613.0,3.2078]
[1724346924767,0.35974053,2613.4,2613.0,3.59038]
[1724346924768,0.74227053,2613.4,2613.0,3.59038]
[1724346925057,0.74227053,2613.4,2613.0,3.2078]
[1724346925265,0.38254,2613.3,2613.0,3.2078]
[1724346925566,0.35974053,2613.4,2613.0,3.2078]
[1724346925750,0.38255,2613.3,2613.0,3.2078]
[1724346926061,1.08255,2613.3,2613.0,3.2078]
[1724346926249,0.7,2613.3,2613.0,3.59038]
[1724346926454,0.74227053,2613.4,2613.0,3.59038]
[1724346926761,0.74227053,2613.4,2613.0,3.2078]
[1724346926762,0.35974053,2613.4,2613.0,3.2078]
[1724346926964,0.00574053,2613.4,2613.2,0.38255]
[1724346927163,0.00574053,2613.4,2613.3,0.74234]
[1724346927364,0.00574053,2613.4,2613.3,3.95014]
[1724346927659,0.00574053,2613.4,2613.3,7.77654]
[1724346931058,0.00574053,2613.4,2613.3,7.394]
[1724346931660,0.38827053,2613.4,2613.3,3.2078]
[1724346931855,0.00574053,2613.4,2613.2,3.2078]
[1724346932058,1.11137053,2613.4,2613.2,3.2078]
[1724346932258,0.38254,2613.3,2613.2,3.2078]
[1724346932459,0.38254,2613.3,2613.1,3.2078]
[1724346933759,0.72884053,2613.4,2613.1,3.2078]
[1724346933760,1.11137053,2613.4,2613.1,3.2078]
[1724346933958,1.11137053,2613.4,2613.1,3.59037]
[1724346934154,0.72884053,2613.4,2613.2,0.38255]
[1724346934359,0.72884053,2613.4,2613.1,3.2078]
[1724346934560,0.72884053,2613.4,2613.2,0.38255]
[1724346934867,0.00574053,2613.4,2613.3,0.38254]
[1724346936561,0.00574053,2613.4,2613.2,0.38254]
[1724346936871,0.00574053,2613.4,2613.3,0.38254]
[1724346937765,0.00574053,2613.4,2613.2,0.38254]
[1724346938464,0.00574053,2613.4,2613.3,0.38254]
[1724346939067,0.00574053,2613.4,2613.2,0.38254]
[1724346939263,0.00574053,2613.4,2613.3,0.38254]
[1724346940267,0.00574053,2613.4,2613.3,4.20894]
[1724346942467,0.00574053,2613.4,2613.3,0.38254]
[1724346943772,0.00574053,2613.4,2613.1,3.59036]
[1724346943962,0.38827053,2613.4,2613.1,3.59036]
[1724346944269,0.38255,2613.3,2613.1,3.2078]
[1724346944571,0.00574053,2613.4,2613.3,0.38254]
[1724346944763,0.00574053,2613.4,2613.3,2.0793]
[1724346944958,0.00574053,2613.4,2613.3,32.94934]
[1724346948663,0.00574053,2613.4,2613.3,4.58154]
[1724346950473,0.00574053,2613.4,2613.1,3.2078]
[1724346950474,0.38255,2613.2,2613.1,3.2078]
[1724346953271,0.38255,2613.3,2613.1,3.59037]
[1724346954172,1.50228053,2613.4,2613.2,0.38255]
[1724346955580,1.50228053,2613.4,2613.1,3.59036]
[1724346955873,0.38254,2613.3,2613.1,3.59036]
[1724346956081,1.11974053,2613.4,2613.1,3.2078]
[1724346956082,0.38255,2613.2,2613.1,3.2078]
[1724346956371,0.38255,2613.2,2613.0,0.00574053]
[1724346956372,0.38257,2613.1,2613.0,0.00574053]
[1724346957475,0.38257,2613.1,2613.0,0.38832053]
[1724346957674,0.38255,2613.3,2613.2,0.38255]
[1724346958074,4.20895,2613.3,2613.2,0.38255]
[1724346959282,4.20895,2613.3,2613.1,0.38256]
[1724346959580,0.38255,2613.3,2613.1,0.38256]
[1724346959784,4.20895,2613.3,2613.1,0.38256]
[1724346960273,4.20895,2613.3,2613.2,0.38255]
[1724346960483,0.38255,2613.3,2613.2,0.38255]
[1724346960672,4.20895,2613.3,2613.2,0.38255]
[1724346961382,0.38255,2613.3,2613.2,0.38255]
[1724346961583,1.50227053,2613.4,2613.2,0.38255]
[1724346962276,1.11827053,2613.4,2613.2,0.38254]
[1724346962474,1.11827053,2613.4,2613.3,0.38254]
[1724346962672,0.73574053,2613.4,2613.3,0.38254]
[1724346963375,0.73574053,2613.4,2613.2,0.38255]
[1724346963582,0.38255,2613.3,2613.1,3.59036]
[1724346964480,1.11828053,2613.4,2613.2,0.38255]
[1724346964786,0.38254,2613.3,2613.1,3.2078]
[1724346964990,1.11827053,2613.4,2613.2,0.38255]
[1724346965287,0.73574053,2613.4,2613.3,0.38254]
[1724346965674,1.11827053,2613.4,2613.3,0.38254]
[1724346966185,0.73574053,2613.4,2613.3,0.38254]
[1724346967088,1.11827053,2613.4,2613.1,3.2078]
[1724346967277,1.11827053,2613.4,2613.2,0.38255]
[1724346967587,0.73574053,2613.4,2613.1,3.2078]
[1724346967884,0.38255,2613.2,2613.0,0.38831053]
[1724346968084,0.351,2613.1,2613.0,0.38831053]
[1724346968286,0.351,2613.1,2613.0,0.00574053]
[1724346968287,0.73357,2613.1,2613.0,0.00574053]
[1724346968979,0.73357,2613.1,2613.0,0.38832053]
[1724346969181,0.351,2613.1,2613.0,0.38832053]
[1724346969387,0.73357,2613.1,2613.0,0.38832053]
[1724346969791,0.351,2613.1,2613.0,0.38832053]
[1724346969994,0.73357,2613.1,2613.0,0.38832053]
[1724346973095,0.351,2613.1,2613.0,0.38832053]
[1724346973600,1.69,2613.1,2613.0,0.00574053]
[1724346973795,10.6972,2613.1,2613.0,0.00574053]
[1724346974286,0.351,2613.1,2612.5,3.2078]
[1724346974495,0.35324053,2613.4,2612.8,3.2078]
[1724346974797,1.09504053,2613.4,2613.2,0.38255]
[1724346975488,1.09504053,2613.4,2613.0,0.00574053]
[1724346975691,1.09504053,2613.4,2613.2,0.38255]
[1724346976587,1.09504053,2613.4,2613.1,3.2078]
[1724346976791,0.00574053,2613.4,2613.3,0.38254]
[1724346977193,0.00574053,2613.4,2613.3,4.20894]
[1724346977389,0.00574053,2613.4,2613.3,4.56884]
[1724346978189,0.00574053,2613.4,2613.3,0.74244]
[1724346978398,0.00574053,2613.4,2613.3,4.56884]
[1724346978600,0.00574053,2613.4,2613.3,0.74244]
[1724346980904,0.00574053,2613.4,2613.3,4.56884]
[1724346983899,0.00574053,2613.4,2613.3,4.1863]
[1724346984201,0.00574053,2613.4,2613.3,4.56884]
[1724346986398,0.00574053,2613.4,2613.3,9.56884]
[1724346986711,0.00574053,2613.4,2613.3,4.56884]
[1724346988813,0.00331869,2613.7,2613.6,0.3825]
[1724346989113,0.00331869,2613.7,2613.6,3.5903]
[1724346989413,0.00331869,2613.7,2613.6,7.4167]
[1724346994410,0.85705584,2888.3,2613.6,7.4167]
[1724346994411,0.3824,2614.3,2613.8,0.95618]
[1724346994611,0.38241,2614.2,2614.0,3.2078]
[1724346994805,0.3824,2614.3,2614.1,0.38241]
[1724346995318,0.3824,2614.3,2614.1,0.38719135]
[1724346995520,0.38716944,2614.3,2614.1,0.38719135]
[1724346995713,0.38241,2614.2,2614.1,0.00478135]
[1724346997000,0.38716944,2614.3,2614.1,0.38720135]
[1724346997617,0.38241,2614.2,2614.1,0.00478135]
[1724347001020,0.38716944,2614.3,2614.1,0.00478135]
[1724347001216,0.00476944,2614.3,2614.1,0.38719135]
[1724347001515,0.38715944,2614.3,2614.1,0.38719135]
[1724347001720,0.38715944,2614.3,2614.2,0.38241]
[1724347001721,0.00476944,2614.3,2614.2,0.38241]
[1724347004222,0.00476944,2614.3,2614.1,0.00478135]
[1724347004417,0.38241,2614.2,2614.1,0.00478135]
[1724347004618,3.59021,2614.2,2614.1,0.00478135]
[1724347004923,0.38241,2614.2,2614.1,0.00478135]
[1724347005123,3.59021,2614.2,2614.1,0.00478135]
[1724347005824,8.37184,2614.2,2614.1,0.00478135]
[1724347006121,5.16404,2614.2,2614.1,0.00478135]
[1724347006325,8.37184,2614.2,2614.1,0.00478135]
[1724347006523,4.20801,2614.2,2614.1,0.00478135]
[1724347006713,7.41581,2614.2,2614.1,0.00478135]
[1724347008119,10.16404,2614.2,2614.1,0.00478135]
[1724347008314,13.37184,2614.2,2614.1,0.00478135]
[1724347008923,12.41581,2614.2,2614.1,0.00478135]
[1724347009123,4.20801,2614.2,2614.1,0.00478135]
[1724347009431,12.41581,2614.2,2614.1,0.00478135]
[1724347010514,13.37184,2614.2,2614.1,0.00478135]
[1724347011412,14.69184,2614.2,2614.1,0.00478135]
[1724347016817,11.48404,2614.2,2614.1,0.00478135]
[1724347017119,14.69184,2614.2,2614.1,0.00478135]
[1724347017511,9.69184,2614.2,2614.1,0.00478135]
[1724347018614,8.73581,2614.2,2614.1,0.00478135]
[1724347020424,5.1456,2614.2,2614.1,0.00478135]
[1724347020620,5.52801,2614.2,2614.1,0.00478135]
[1724347021027,8.73581,2614.2,2614.1,0.00478135]
[1724347021225,9.69184,2614.2,2614.1,0.00478135]
[1724347021419,14.30943,2614.2,2613.5,3.59031]
[1724347021627,0.3585,2614.1,2613.5,3.2078]
[1724347021924,1.4085,2614.1,2613.8,0.38246]
[1724347022125,0.3591,2614.0,2613.8,0.38246]
[1724347022327,0.3591,2614.0,2613.8,0.38709891]
[1724347024631,0.3591,2614.0,2613.9,0.3709]
[1724347024827,0.3591,2614.0,2613.9,0.75335]
[1724347025018,3.2078,2614.2,2614.0,0.38244]
[1724347025222,3.2078,2614.2,2613.9,1.7489]
[1724347025223,3.2078,2614.2,2614.1,0.38242]
[1724347025423,1.38276944,2614.3,2614.1,0.38242]
[1724347025424,0.00476944,2614.3,2614.2,0.38241]
[1724347025820,0.00476944,2614.3,2614.1,1.76041]
[1724347026124,1.38276944,2614.3,2614.1,4.96821]
[1724347026318,1.38276944,2614.3,2614.1,3.59021]
[1724347026518,1.38276944,2614.3,2614.1,3.2078]
[1724347026519,1.378,2614.2,2614.1,3.2078]
[1724347026726,1.378,2614.2,2613.9,1.49765]
[1724347027935,1.378,2614.2,2614.0,0.38244]
[1724347028124,0.00476944,2614.3,2614.0,0.38244]
[1724347028525,0.00476944,2614.3,2614.2,1.76041]
[1724347028826,0.00476944,2614.3,2614.2,4.96821]
[1724347030530,0.00476944,2614.3,2614.2,3.59021]
[1724347033327,0.00476944,2614.3,2614.2,7.41501]
[1724347035231,0.00476944,2614.3,2614.2,0.38241]
[1724347036233,0.00476944,2614.3,2614.2,3.59021]
[1724347036836,0.38715944,2614.3,2614.2,3.2078]
[1724347038937,0.00476944,2614.3,2614.2,3.59021]
[1724347039137,0.00476944,2614.3,2614.2,3.2078]
[1724347040239,0.00476944,2614.3,2614.2,3.59021]
[1724347040439,0.00476944,2614.3,2614.2,3.2078]
[1724347040944,0.00476944,2614.3,2614.2,3.59021]
[1724347041140,0.00476944,2614.3,2614.2,0.38241]
[1724347041633,0.00476944,2614.3,2614.2,3.59021]
[1724347041829,0.38715944,2614.3,2614.2,3.2078]
[1724347042036,0.75415944,2614.3,2614.2,3.2078]
[1724347044040,0.75415944,2614.3,2613.9,1.1152]
[1724347044041,0.38242,2614.1,2614.0,0.38244]
[1724347045150,0.3774,2614.2,2613.9,4.32444]
[1724347045342,0.38244,2614.1,2614.0,0.38244]
[1724347045545,0.3774,2614.2,2614.1,0.38242]
[1724347046646,0.75981,2614.2,2614.0,0.38243]
[1724347046843,0.3774,2614.2,2614.1,0.38242]
[1724347047044,0.75982,2614.2,2614.1,0.38242]
[1724347047240,0.3774,2614.2,2613.9,3.5787]
[1724347047442,0.3774,2614.2,2613.9,0.38245]
[1724347047443,0.38244,2614.0,2613.9,0.38245]
[1724347047645,0.38244,2614.0,2613.9,0.75585]
[1724347049151,0.38243,2614.1,2614.0,0.38244]
[1724347051149,0.38243,2614.1,2613.9,0.3734]
[1724347051150,0.38243,2614.1,2613.9,0.75584]
[1724347051452,0.38243,2614.1,2614.0,0.38244]
[1724347052350,0.38243,2614.1,2613.9,0.75584]
[1724347052550,0.38243,2614.1,2613.8,3.21243891]
[1724347052551,1.378,2614.1,2613.8,4.97289891]
[1724347052752,0.3746,2614.0,2613.9,0.38245]
[1724347054453,0.3746,2614.0,2613.9,1.76045]
[1724347054953,0.3774,2614.2,2614.1,0.38242]
[1724347055150,0.00476944,2614.3,2614.2,0.38241]
[1724347055350,0.00476944,2614.3,2614.2,4.95481]
[1724347055551,0.00476944,2614.3,2614.2,32.95481]
[1724347057165,0.00476944,2614.3,2614.2,32.57161]
[1724347057457,0.00476944,2614.3,2614.2,4.57161]
[1724347059959,0.00476944,2614.3,2614.2,0.38241]
[1724347060147,0.00476944,2614.3,2614.2,1.76041]
[1724347060354,0.00476944,2614.3,2614.2,2.13691]
[1724347061453,0.00476944,2614.3,2614.2,5.96171]
[1724347061849,3.94,2614.8,2614.7,0.38234]
[1724347061850,0.727,2614.8,2614.7,0.38234]
[1724347062162,0.727,2614.8,2614.7,1.76034]
[1724347062365,0.75799,2615.0,2614.7,1.76034]
[1724347062664,1.50809,2615.0,2614.7,0.73574]
[1724347062864,1.51259199,2615.0,2614.6,3.59588053]
[1724347063064,0.38231,2614.9,2614.6,3.21354053]
[1724347063256,0.38231,2614.9,2614.6,3.59589053]
[1724347063659,1.51260199,2615.0,2614.6,3.59589053]
[1724347064856,1.13030199,2615.0,2614.8,0.38231]
[1724347065570,1.13030199,2615.0,2614.9,0.38231]
[1724347065764,0.75460199,2615.0,2614.9,0.38231]
[1724347066061,0.00450199,2615.0,2614.9,4.20631]
[1724347066260,0.00450199,2615.0,2614.9,7.41411]
[1724347066674,0.00450199,2615.0,2614.9,3.824]
[1724347067170,0.00450199,2615.0,2614.7,0.38233]
[1724347067364,0.38679199,2615.0,2614.6,0.38808053]
[1724347067564,0.00450199,2615.0,2614.8,0.38231]
[1724347067766,0.00450199,2615.0,2614.7,0.38233]
[1724347068264,0.00450199,2615.0,2614.8,0.3581]
[1724347068465,0.00450199,2615.0,2614.9,0.38231]
[1724347068971,0.00450199,2615.0,2614.8,0.74041]
[1724347069566,0.00450199,2615.0,2614.9,0.38231]
[1724347070066,0.00450199,2615.0,2614.9,0.74701]
[1724347074163,0.00450199,2615.0,2614.8,0.74041]
[1724347074362,0.00450199,2615.0,2614.6,3.21354053]
[1724347074565,0.00450199,2615.0,2614.6,3.58124053]
[1724347074861,0.00450199,2615.0,2614.7,0.38234]
[1724347075062,0.00450199,2615.0,2614.8,0.38232]
[1724347075063,0.38320199,2615.0,2614.8,0.38232]
[1724347075361,0.38320199,2615.0,2614.7,0.38233]
[1724347075560,0.74141,2614.9,2614.6,3.21354053]
[1724347075769,0.3679,2614.8,2614.6,3.59588053]
[1724347076071,0.3679,2614.8,2614.7,0.38234]
[1724347078074,0.3591,2614.9,2614.8,0.38232]
[1724347080779,0.38234,2614.7,2614.6,0.00574053]
[1724347082269,4.20714,2614.7,2614.6,0.00574053]
[1724347082574,9.74879,2614.7,2614.6,0.00574053]
[1724347083081,8.79294,2614.7,2614.6,0.00574053]
[1724347083478,4.96814,2614.7,2614.6,0.00574053]
[1724347084078,3.2078,2614.7,2614.6,1.38374053]
[1724347084276,0.36,2614.8,2614.7,0.38234]
[1724347085071,0.3591,2614.9,2614.8,0.38232]
[1724347085476,0.00450199,2615.0,2614.9,0.38231]
[1724347086678,0.3774,2615.3,2614.9,0.38231]
[1724347086679,0.3782,2615.4,2615.1,0.38228]
[1724347087081,0.3782,2615.4,2615.2,0.3692]
[1724347087283,0.3782,2615.4,2615.0,0.38228]
[1724347087576,0.3782,2615.4,2615.0,0.75149]
[1724347087782,0.38152292,2615.4,2615.0,0.75149]
[1724347087977,0.38152292,2615.4,2615.0,0.3692]
[1724347088176,0.38226,2615.3,2614.7,0.38234]
[1724347088377,0.38227,2615.2,2614.7,0.3591]
[1724347088680,0.3824,2615.1,2614.7,0.3591]
[1724347088869,0.76468,2615.1,2614.7,0.3591]
[1724347089074,0.3669,2615.0,2614.7,0.3591]
[1724347089272,0.7492,2615.0,2614.6,3.21354053]
[1724347089481,0.38231,2614.9,2614.6,3.21354053]
[1724347089683,0.74922,2614.8,2614.6,0.00574053]
[1724347089884,0.3751,2614.7,2614.6,0.00574053]
[1724347094088,0.3751,2614.7,2614.6,0.38809053]
[1724347094279,0.3669,2614.8,2614.6,0.38809053]
[1724347094482,0.3669,2615.0,2614.8,0.38232]
[1724347094686,0.3669,2615.0,2614.9,0.38231]
[1724347094885,0.3669,2615.0,2614.7,3.2078]
[1724347095186,0.3669,2615.0,2614.8,0.38231]
[1724347095780,0.74919,2615.0,2614.7,0.38233]
[1724347095992,0.3669,2615.0,2614.7,0.38233]
[1724347096182,0.74919,2615.0,2614.7,0.38233]
[1724347096892,0.3669,2615.0,2614.7,0.38233]
[1724347097095,0.3669,2615.0,2614.8,0.38231]
[1724347097392,0.3669,2615.0,2614.6,0.00574053]
[1724347097780,0.368,2615.1,2615.0,0.38229]
[1724347098084,0.00332292,2615.4,2615.3,0.38225]
[1724347098794,0.00332292,2615.4,2615.1,0.7332]
[1724347098982,0.00332292,2615.4,2615.3,3.2078]
[1724347099295,0.00332292,2615.4,2615.3,3.59005]
[1724347099492,0.00332292,2615.4,2615.3,3.2078]
[1724347100188,0.00332292,2615.4,2615.3,3.59005]
[1724347100393,0.00332292,2615.4,2615.2,0.38226]
[1724347101189,0.00332292,2615.4,2615.3,0.38225]
[1724347101887,0.00332292,2615.4,2615.2,0.38225]
[1724347102488,0.00332292,2615.4,2615.1,3.941]
[1724347102693,0.00332292,2615.4,2615.1,3.5745]
[1724347102996,0.00332292,2615.4,2615.1,3.95677]
[1724347103390,0.00332292,2615.4,2615.1,3.5745]
[1724347103594,0.00332292,2615.4,2615.1,3.95677]
[1724347103992,0.00332292,2615.4,2615.2,0.38226]
[1724347104598,0.00332292,2615.4,2615.2,0.38225]
[1724347104796,0.00332292,2615.4,2615.3,0.38225]
[1724347105295,0.00332292,2615.4,2615.2,0.3705]
[1724347105296,0.38556292,2615.4,2615.1,3.5745]
[1724347105498,0.00332292,2615.4,2615.1,3.59007]